[Event "Czech Open-GM 2022"]
[Site "Pardubice"]
[Date "2022.07.23"]
[Round "2.24"]
[White "Luch, Michal"]
[Black "Paseka, Matyas"]
[Result "0-1"]
[ECO "E62"]
[WhiteElo "2375"]
[BlackElo "2218"]
[Annotator "TA"]
[PlyCount "108"]
[EventDate "2022.07.22"]
[EventType "swiss"]
[EventCountry "CZE"]
[SourceTitle "playchess.com"]
[Source "ChessBase"]
[SourceQuality "1"]
[TimeControl "40/5400+30:1800+30"]

{[%evp 25,108,44,57,17,50,43,56,28,58,32,44,0,0,-27,-12,-30,-21,-171,-163,-235,-220,-312,-316,-315,-328,-285,17,0,17,36,20,27,32,-51,-57,-55,-60,-58,0,-145,-144,-143,-139,-143,-143,-141,-141,-143,-143,-152,-102,-163,-154,-235,-243,-217,-196,-1041,-1037,-1847,-1639,-1316,-1343,-673,-853,-729,-647,-621,-600,-5605,-5506,-5114,-5114,-1727,-1508,-1089,-1089,-29988,-871,-29985,-62,-29996,-29997,-29997,-29998]} 1. d4 {[%emt 0:00:01]} Nf6 {[%emt 0:00:07]} 2. c4 {[%emt 0:00:02]} g6 {[%emt 0:00:08]} 3. g3 {[%emt 0:00:02]} Bg7 {[%emt 0:00:06]} 4. Bg2 {[%emt 0:00:03]} O-O {[%emt 0:00:11]} 5. Nc3 {[%emt 0:00:02]} d6 {[%emt 0:00:09]} 6. Nf3 {[%emt 0:00:02]} Nc6 {[%emt 0:00:08]} 7. O-O {[%emt 0:00:06]} Bf5 {[%emt 0:00:07]} 8. d5 {[%emt 0:02:13]} Na5 {[%emt 0:00:12]} 9. Nd2 {[%emt 0:01:22]} c5 {[%emt 0:03:53]} 10. e4 {[%emt 0:00:03]} Bd7 {[%emt 0:00:20]} 11. Qc2 {[%emt 0:00:18]} a6 {[%emt 0:00:53]} 12. b3 {[%emt 0:00:36]} b5 {[%emt 0:00:16]} 13. Bb2 {[%emt 0:01:09]} Rb8 {[%emt 0:04:02]} 14. Rab1 {[%emt 0:04:32] E66: King's Indian: Fianchetto: 6...c5 7 0-0 Nc6 8 d5.} bxc4 {[%emt 0:15:00]} 15. bxc4 {[%emt 0:00:02]} Ng4 {[%emt 0:00:27]} 16. Nd1 {[%emt 0:52:26] Hoping for Bxg7. White is slightly better.} Bd4 {[%emt 0:11:53]} 17. Bxd4 {[%emt 0:03:41]} (17. h3 $5 {[%cal Rh3g4]} Nf6 18. Qd3 $14) 17... cxd4 {[%emt 0:00:10] [#]} 18. Rxb8 $146 {[%emt 0:01:28]} ({Predecessor:} 18. Nb2 Ne5 19. Nd3 Rxb1 20. Rxb1 Ba4 21. Qxa4 Nxd3 22. Qc2 Nc5 23. Qb2 d3 24. Qc3 e5 25. dxe6 fxe6 26. e5 dxe5 27. Qxe5 Rf5 28. Qc3 Qc7 {½-½ (28) Batsuren,D (2451)-Fernandez,D (2462) Novi Sad 2020}) 18... Qxb8 {[%emt 0:00:09]} 19. c5 {[%emt 0:00:32]} Bb5 {[%emt 0:19:45]} 20. Re1 $1 {[%emt 0:04:52]} Ne5 $1 {[%emt 0:02:25] White must now prevent ...Nd3.} (20... dxc5 21. Qxc5 Rc8 22. Qxd4 $14) 21. Nb2 {[%emt 0:00:17] Inhibits Nd3.} (21. c6 $11 {and White has nothing to worry.}) 21... Rc8 $1 $19 {[%emt 0:16:01]} ({Much less strong is} 21... dxc5 22. Qxc5 Rc8 23. Qxd4 $14) 22. c6 {[%emt 0:00:12]} (22. Nf3 $142 Nxf3+ 23. Bxf3 Rxc5 24. Qd2) 22... Bxc6 $1 {[%emt 0:00:08]} 23. dxc6 {[%emt 0:01:05]} (23. Rb1 {was necessary.} Bd7 24. Qd1) 23... Rxc6 {[%emt 0:00:06]} 24. Qa4 {[%emt 0:01:29]} Qxb2 {[%emt 0:00:10]} 25. Qxa5 {[%emt 0:00:02]} Rc2 $2 {[%emt 0:00:08]} (25... Rc5 $19 26. Qd8+ Kg7) 26. Rd1 {[%emt 0:06:40]} Rc1 {[%emt 0:00:34]} 27. Rxc1 {[%emt 0:02:30]} Qxc1+ {[%emt 0:00:04]} 28. Nf1 $1 {[%emt 0:00:05] Qd8+ is the strong threat.} d3 $1 {[%emt 0:00:38][%cal Bd4d3,Bd3d2][%mdl 32]} 29. f4 {[%emt 0:14:53]} ({Better is} 29. Qb4 $14) 29... Nc4 $1 $15 {[%emt 0:00:22]} 30. Qxa6 {[%emt 0:02:01]} d2 $1 $36 {[%emt 0:02:26][%mdl 2048] White is under pressure.} 31. Bf3 {[%emt 0:00:12] Strongly threatening Qa8+.} Qc3 {[%emt 0:04:40]} (31... Ne3 $1 $15) 32. Be2 {[%emt 0:02:30]} (32. Bd1 $11 {keeps the balance.}) 32... Qd4+ $17 {[%emt 0:00:06]} 33. Kg2 {[%emt 0:00:03] And now Qa8+ would win.} Qxe4+ {[%emt 0:00:04]} 34. Kf2 {[%emt 0:00:07] [#]} Qd4+ {[%emt 0:02:11]} 35. Kg2 {[%emt 0:00:01] [#]} Nb2 $1 {[%emt 0:03:33][%cal Ob2d3] 0x0.0013b8e1a4ebdp-1022s more active pieces.} 36. Nxd2 {[%emt 0:01:00]} Qxd2 {[%emt 0:00:05][%mdl 4096] Endgame KQB-KQN} 37. Qb5 {[%emt 0:00:23]} e6 {[%emt 0:01:46]} (37... Kg7 $142 38. Kf1 Qd4) 38. h4 {[%emt 0:01:10]} (38. Kf3 $17) 38... h5 {[%emt 0:02:31]} 39. Kh3 {[%emt 0:00:58]} (39. Kf3 $17) 39... Qd4 {[%emt 0:03:51]} 40. Kg2 {[%emt 0:00:38]} Kg7 {[%emt 0:01:11]} 41. Bxh5 $2 {[%emt 0:05:50]} (41. Qb3) 41... Nd3 $19 {[%emt 0:01:05]} ({Weaker is} 41... gxh5 42. Qg5+ Kh8 43. Qxh5+ Kg8 44. Qg5+ Qg7 45. Qd8+ Kh7 46. Qxd6 $17) 42. Bxg6 {[%emt 0:00:31]} Qf2+ {[%emt 0:02:54]} 43. Kh3 {[%emt 0:04:38]} Qf1+ {[%emt 0:00:07]} 44. Kh2 {[%emt 0:00:14]} Qe2+ {[%emt 0:00:04]} ({And not} 44... Kxg6 45. Qg5+ Kh7 46. Qh5+ Kg7 47. Qg5+ Kf8 48. Qd8+ Kg7 49. Qg5+ Kh7 50. Qh5+ Kg8 51. Qg5+ Kh8 52. Qh5+ Kg8 53. Qg5+ Kh8 54. Qh5+ Kg8 $11) 45. Kg1 {[%emt 0:00:08]} Kxg6 {[%emt 0:02:26]} 46. Qg5+ {[%emt 0:06:42]} Kh7 {[%emt 0:00:04]} 47. Qe7 {[%emt 0:00:20]} Qd1+ {[%emt 0:03:58]} 48. Kh2 {[%emt 0:01:34]} Qc2+ {[%emt 0:00:23]} 49. Kg1 {[%emt 0:03:11]} Qc5+ {[%emt 0:00:05]} 50. Kh2 {[%emt 0:00:33]} Kg7 {[%emt 0:00:09] ( -> ...Qc2+)} 51. a4 {[%emt 0:01:38]} Ne1 {[%emt 0:13:26]} (51... Qf2+ $142 52. Kh3 Qf3 53. Qg5+ Kh7 54. Kh2 Qe2+ 55. Kg1 Ne1 56. Qh5+ Qxh5 57. g4 Qd5 58. Kf1 Qd2 59. g5 Nc2 60. g6+ fxg6 61. Kg1 Ne3 62. Kh1 Qg2#) 52. a5 {[%emt 0:07:39]} Kg6 $2 {[%emt 0:03:11]} (52... Qc2+ {mates} 53. Kh3 Qg2+ 54. Kg4 Qf3+ 55. Kh3 Qg2+ 56. Kg4 Qe2+ 57. Kh3 Nf3 58. Qg5+ Nxg5+ 59. hxg5 d5 60. g4 d4 61. a6 Qxa6 62. Kh2 d3 63. Kg3 d2 64. f5 Qd3+ 65. Kh4 d1=Q 66. f6+ Kh8 67. g6 Qh1+ 68. Kg5 Qe3#) 53. Kh3 $2 {[%emt 0:03:40][%mdl 8192]} (53. Qg5+ $15 Qxg5 54. fxg5 Nf3+ 55. Kg2) 53... Qf5+ {[%emt 0:00:10]} 54. Kh2 {[%emt 0:00:14]} Qc2+ {[%emt 0:00:04] Weighted Error Value: White=0.93/Black=0.28 (precise)} 0-1

[Event "Czech Open-GM 2022"]
[Site "Pardubice"]
[Date "2022.07.23"]
[Round "2.25"]
[White "Tichy, Stepan"]
[Black "Svanda, Ondrej"]
[Result "0-1"]
[ECO "A01"]
[WhiteElo "2207"]
[BlackElo "2363"]
[Annotator "TA"]
[PlyCount "116"]
[EventDate "2022.07.22"]
[EventType "swiss"]
[EventCountry "CZE"]
[SourceTitle "playchess.com"]
[Source "ChessBase"]
[SourceQuality "1"]
[TimeControl "40/5400+30:1800+30"]

{[%evp 9,116,45,54,-13,31,42,53,9,36,6,27,0,35,16,43,34,31,43,60,80,75,0,0,0,0,-20,-30,-46,-25,-41,-18,-80,-87,-82,-85,-107,-67,-94,-64,-102,-98,-95,-97,-113,-106,-112,-72,-114,-124,-155,-91,-124,-120,-147,-123,-157,-143,-143,-143,-145,-110,-113,-74,-114,-33,-332,-332,-433,-427,-372,-356,-500,-480,-768,-763,-748,-630,-606,-498,-1141,-950,-29969,-2234,-29971,-29972,-29972,-29973,-29973,-29972,-29975,-29976,-29977,-29978,-29977,-29978,-29978,-29979,-29979,-29979,-29976,-29977,-29974,-29975,-29976,-29976,-29982,-29983,-29983,-29984]} 1. b3 {[%emt 0:00:02]} e5 {[%emt 0:00:46]} 2. Bb2 {[%emt 0:00:06]} d6 {[%emt 0:00:02]} 3. e3 {[%emt 0:00:40]} g6 {[%emt 0:03:02]} 4. d4 {[%emt 0:01:19]} Nd7 {[%emt 0:00:28]} 5. dxe5 {[%emt 0:01:54]} Bg7 {[%emt 0:03:26]} 6. Nd2 {[%emt 0:00:40] A01: Nimzowitsch-Larsen Opening.} (6. Nf3 $14) 6... dxe5 {[%emt 0:05:52]} 7. Ngf3 {[%emt 0:03:17]} Ne7 {[%emt 0:00:07]} 8. Nc4 {[%emt 0:01:24] White is slightly better.} f6 {[%emt 0:06:08] [#]} 9. e4 $146 {[%emt 0:00:51]} ({Predecessor:} 9. h4 h5 10. a4 b6 11. Ba3 Bb7 12. Be2 Nf8 13. Nfd2 Bxg2 14. Rg1 Bd5 15. Bf3 {1-0 (25) Maksimovic,B (2402)-Vratonjic,S (2431) Vrsac 2000}) 9... b6 {[%emt 0:02:07]} 10. Bd3 {[%emt 0:04:58]} Bb7 {[%emt 0:00:05]} 11. Qe2 {[%emt 0:00:46]} Nc5 {[%emt 0:10:52]} 12. O-O-O {[%emt 0:05:48][%cal Rc4e5]} Qc8 {[%emt 0:01:51]} 13. Ba3 {[%emt 0:03:27]} Ne6 {[%emt 0:09:33]} 14. g3 {[%emt 0:06:27]} Kf7 {[%emt 0:06:26]} 15. Bxe7 {[%emt 0:04:14]} (15. Kb1 $16) 15... Kxe7 $11 {[%emt 0:00:01]} 16. Ne3 {[%emt 0:00:11]} Rd8 {[%emt 0:02:25]} 17. Nd5+ {[%emt 0:15:20] Pair of Knights!} (17. h4 $5 {[%cal Rh4h5]}) 17... Kf8 {[%emt 0:07:48]} 18. Nc3 {[%emt 0:03:09]} c6 {[%emt 0:04:55]} 19. Bc4 {[%emt 0:07:28]} b5 {[%emt 0:01:10] White must now prevent ...Rxd1+.} (19... Nd4 {is interesting.} 20. Nxd4 exd4 21. Na4 c5) 20. Rxd8+ {[%emt 0:00:07]} (20. Bxe6 $11 {remains equal.} Qxe6 21. h4) 20... Nxd8 $17 {[%emt 0:00:05]} 21. Bd3 {[%emt 0:00:08]} Ne6 {[%emt 0:00:22]} 22. Qe3 {[%emt 0:03:11]} Qc7 {[%emt 0:02:22]} 23. Rd1 {[%emt 0:02:32]} Qb6 {[%emt 0:01:33]} 24. Bf1 {[%emt 0:04:46]} Qxe3+ {[%emt 0:01:24]} 25. fxe3 {[%emt 0:00:02]} Ke7 {[%emt 0:00:01]} 26. Bh3 {[%emt 0:01:07]} Bh6 {[%emt 0:01:35]} 27. Re1 {[%emt 0:04:05]} a5 {[%emt 0:00:04]} 28. Bxe6 {[%emt 0:00:44]} Kxe6 {[%emt 0:00:02]} 29. g4 {[%emt 0:02:33]} Rd8 {[%emt 0:02:15]} (29... a4 $142 30. Kb2 Bf8) 30. h4 {[%emt 0:00:25]} Bf8 {[%emt 0:00:32]} 31. Kb2 {[%emt 0:02:20] Against Ba3+} Bc5 {[%emt 0:11:05]} 32. Rd1 {[%emt 0:03:26]} Rxd1 {[%emt 0:00:32]} 33. Nxd1 {[%emt 0:00:02][%mdl 4096] Endgame KBB-KNN} Be7 {[%emt 0:01:19]} 34. Nf2 {[%emt 0:04:47]} c5 {[%emt 0:01:34]} 35. c4 {[%emt 0:02:59]} b4 {[%emt 0:02:05] aiming for ...h6.} 36. Kc2 {[%emt 0:00:30]} f5 {[%emt 0:03:29]} (36... h5 $17 {And now ...hxg4 would win.} 37. gxh5 gxh5) 37. Kd3 $2 {[%emt 0:00:50][%mdl 8192] White does not recover from this.} (37. g5 $1 $15) 37... h5 $1 $19 {[%emt 0:02:10]} 38. exf5+ {[%emt 0:11:02]} gxf5 {[%emt 0:00:02]} 39. gxf5+ {[%emt 0:00:08]} Kxf5 {[%emt 0:00:06]} 40. Ke2 {[%emt 0:01:22]} (40. e4+ $142 Kf4 41. Ng5) 40... e4 {[%emt 0:07:59]} 41. Ng5 {[%emt 0:04:12]} (41. Nd2 $142 Bxh4 42. Nf1) 41... Bxg5 {[%emt 0:00:13]} 42. hxg5 {[%emt 0:00:01]} Kxg5 {[%emt 0:00:01] KB-KN} 43. Kf1 {[%emt 0:00:15]} Kf5 {[%emt 0:01:21]} 44. Kg2 {[%emt 0:00:21]} (44. Nh3 $142 a4 45. Nf4) 44... a4 {[%emt 0:02:00][%cal Ba5a4,Ba4a3][%mdl 32] ( -> ...a3)} 45. Kg3 {[%emt 0:04:19]} Ba6 {[%emt 0:01:39]} (45... a3 $142 46. Nd1 Bc8 47. Kh4 Bd7 48. Kxh5 Be6 49. Kh4 Bf7 50. Kg3 Bh5 51. Nf2 Be2 52. Nh3 Bd1 53. Nf4 Bxb3 $1 {[%mdl 512]} 54. axb3 a2 55. Nd5 a1=Q 56. Ne7+ Kg5 57. Kf2 Qf6+ 58. Ke2 Qxe7 59. Kd2 Qa7 60. Ke2 Qa2+ 61. Kd1 Kg4 62. Ke1 Kf3 63. Kd1 Qb2 64. Ke1 Qe2#) 46. Nd1 {[%emt 0:00:46] [#]} a3 $1 {[%emt 0:00:01] Black mates.} 47. Kh4 {[%emt 0:00:24]} Kg6 {[%emt 0:00:07]} 48. Kg3 {[%emt 0:00:47]} Kg5 {[%emt 0:01:12]} 49. Nf2 {[%emt 0:00:15]} h4+ {[%emt 0:00:27]} 50. Kg2 {[%emt 0:00:07]} Kf5 {[%emt 0:00:03]} 51. Nd1 {[%emt 0:00:15]} Bc8 {[%emt 0:00:01]} 52. Kh3 {[%emt 0:00:40]} Kg5+ {[%emt 0:00:02]} 53. Kg2 {[%emt 0:00:07]} Be6 {[%emt 0:00:24]} 54. Nf2 {[%emt 0:00:20]} Kf5 {[%emt 0:00:28]} 55. Nd1 {[%emt 0:00:11]} Ke5 {[%emt 0:00:34]} 56. Kf1 {[%emt 0:00:53]} Bh3+ {[%emt 0:00:05]} 57. Ke1 {[%emt 0:00:47]} Bg2 {[%emt 0:00:11]} 58. Nf2 {[%emt 0:01:15]} Kf5 {[%emt 0:00:01] Weighted Error Value: White=0.56/Black=0.26 (precise)} 0-1

[Event "Czech Open-GM 2022"]
[Site "Pardubice"]
[Date "2022.07.23"]
[Round "2.26"]
[White "Nemec, Jachym"]
[Black "Nytra, Ondrej"]
[Result "1-0"]
[ECO "A50"]
[WhiteElo "2357"]
[BlackElo "2214"]
[Annotator "TA"]
[PlyCount "53"]
[EventDate "2022.07.22"]
[EventType "swiss"]
[EventCountry "CZE"]
[SourceTitle "playchess.com"]
[Source "ChessBase"]
[SourceQuality "1"]
[TimeControl "40/5400+30:1800+30"]

{[%evp 9,53,53,58,19,22,21,28,26,22,8,40,22,54,21,91,72,98,92,206,221,308,300,455,469,447,341,333,325,320,287,441,450,436,425,497,493,487,460,480,465,631,641,1158,1158,1060,602]} 1. d4 {[%emt 0:00:03][%cal Bd2d4,Bd4d5][%mdl 32] Let's Check} Nf6 {[%emt 0:00:09]} 2. c4 {[%emt 0:00:28]} Nc6 {[%emt 0:00:08]} 3. Nf3 {[%emt 0:00:25]} e6 {[%emt 0:00:04]} 4. a3 {[%emt 0:00:39]} d6 {[%emt 0:01:33]} 5. Nc3 {[%emt 0:00:40]} g6 {[%emt 0:01:41]} 6. d5 {[%emt 0:07:33] E10: Blumenfeld Gambit.} Ne7 {[%emt 0:05:27]} 7. e4 {[%emt 0:04:08]} Bg7 {[%emt 0:02:21]} 8. Bd3 {[%emt 0:08:18] White has an edge.} O-O {[%emt 0:02:56]} 9. h3 {[%emt 0:05:53] [#]} c6 $146 {[%emt 0:09:29]} ({Predecessor:} 9... Nd7 10. Bg5 Nc5 11. Bc2 a5 12. O-O Bd7 13. Re1 a4 14. e5 Ra6 15. exd6 cxd6 16. dxe6 fxe6 {0-1 (35) Alvarez Marquez,J (2398)-Bologan,V (2680) Caleta 2012 CBM 147 [Let's Check]}) 10. dxe6 {[%emt 0:01:59]} fxe6 {[%emt 0:09:18]} 11. O-O {[%emt 0:01:45]} Nh5 {[%emt 0:05:02]} (11... c5 $11 {remains equal.}) 12. Re1 $16 {[%emt 0:03:09] White now steadily converts the win.} e5 {[%emt 0:03:48]} 13. c5 {[%emt 0:01:16]} d5 {[%emt 0:13:42] [#]} (13... dxc5 $16 {was called for.} 14. Bc4+ Kh8) 14. exd5 $1 $18 {[%emt 0:01:02]} Rxf3 {[%emt 0:15:36]} 15. Qxf3 {[%emt 0:00:27]} cxd5 {[%emt 0:00:04]} (15... Nxd5 {was necessary.} 16. Bc4 Be6) 16. Bg5 {[%emt 0:00:21]} Be6 {[%emt 0:00:04]} 17. Bxe7 {[%emt 0:01:40]} Qxe7 {[%emt 0:00:04]} 18. Nxd5 {[%emt 0:00:50]} Qxc5 {[%emt 0:00:08]} 19. Be4 {[%emt 0:00:53][%cal Bd3e4,Be4d5,Bd5b7][%mdl 32]} Bxd5 {[%emt 0:03:10]} (19... Rf8 {keeps fighting.} 20. Rac1 Qd4) 20. Bxd5+ {[%emt 0:00:06] White is clearly winning.} Kh8 {[%emt 0:00:04]} 21. Rac1 {[%emt 0:01:04]} Qb6 {[%emt 0:00:17]} 22. Bxb7 {[%emt 0:01:25]} Rb8 {[%emt 0:01:04]} 23. Rc8+ {[%emt 0:00:39]} Rxc8 {[%emt 0:00:02]} 24. Bxc8 {[%emt 0:00:06]} Qxb2 {[%emt 0:00:43]} 25. Bg4 {[%emt 0:00:15] [#] Qa8+ would kill now.} h6 {[%emt 0:01:25]} 26. Bxh5 {[%emt 0:00:20]} gxh5 {[%emt 0:00:04]} 27. Rd1 {[%emt 0:00:34] Weighted Error Value: White=0.12 (very precise) /Black=0.52} 1-0

[Event "Czech Open-GM 2022"]
[Site "Pardubice"]
[Date "2022.07.23"]
[Round "2.27"]
[White "Kusa, Jakub"]
[Black "Jares, Michal"]
[Result "1-0"]
[ECO "E06"]
[WhiteElo "2353"]
[BlackElo "2208"]
[Annotator "TA"]
[PlyCount "101"]
[EventDate "2022.07.22"]
[EventType "swiss"]
[EventCountry "CZE"]
[SourceTitle "playchess.com"]
[Source "ChessBase"]
[SourceQuality "1"]
[TimeControl "40/5400+30:1800+30"]

{[%evp 18,101,16,20,13,10,19,16,21,0,30,32,47,41,51,49,56,58,54,35,53,70,85,91,96,93,93,70,83,68,130,119,116,125,114,117,163,157,170,158,180,120,120,84,89,55,59,53,44,43,65,54,92,93,79,70,107,107,116,91,91,91,99,106,198,207,289,289,279,285,389,365,361,349,339,337,829,816,5751,5402,5819,5683,29997,29998,29998,29999]} 1. d4 {[%emt 0:00:04]} Nf6 {[%emt 0:00:14]} 2. c4 {[%emt 0:00:08]} e6 {[%emt 0:00:12]} 3. g3 {[%emt 0:00:29]} d5 {[%emt 0:00:23]} 4. Nf3 {[%emt 0:00:21]} Be7 {[%emt 0:00:16]} 5. Bg2 {[%emt 0:00:23]} O-O {[%emt 0:00:04]} 6. O-O {[%emt 0:00:28]} dxc4 {[%emt 0:00:12]} 7. Qc2 {[%emt 0:00:39]} a6 {[%emt 0:01:10]} 8. a4 {[%emt 0:00:11]} Bd7 {[%emt 0:00:31]} 9. Qxc4 {[%emt 0:00:52]} Bc6 {[%emt 0:00:35]} 10. Bf4 {[%emt 0:00:37]} a5 {[%emt 0:14:05] E05: Open Catalan: 5 Nf3 Be7.} 11. Nc3 {[%emt 0:03:00]} Nbd7 {[%emt 0:05:06]} 12. Rfd1 {[%emt 0:04:53]} Nb6 {[%emt 0:05:28] The position is equal.} 13. Qb3 {[%emt 0:02:15]} Bb4 {[%emt 0:01:47]} 14. Ne5 {[%emt 0:04:50]} Bxg2 {[%emt 0:06:16]} 15. Kxg2 {[%emt 0:00:44]} Bxc3 {[%emt 0:07:44] [#]} 16. bxc3 $146 {[%emt 0:03:48][%cal Bb2c3,Bc3c4,Bc4c5][%mdl 32]} ({Predecessor:} 16. Qxc3 Nbd5 17. Qf3 Nxf4+ 18. Qxf4 Ra6 19. Rac1 Rb6 20. Nd3 Rd6 21. Ne5 Rb6 22. Nd3 Rd6 23. Ne5 {½-½ (23) Mikhalchishin,A (2530)-Ivanovic,B (2535) Skopje 1991}) 16... Qd5+ {[%emt 0:07:06]} 17. Qxd5 {[%emt 0:00:27]} Nbxd5 {[%emt 0:04:32] Pair of Knights!} 18. Bd2 {[%emt 0:03:15]} Ne4 {[%emt 0:04:32]} 19. c4 {[%emt 0:02:58]} Nb6 {[%emt 0:12:17]} 20. c5 {[%emt 0:02:57]} Nd5 {[%emt 0:01:22]} 21. Be1 {[%emt 0:02:00]} b6 {[%emt 0:05:40]} 22. Ra3 {[%emt 0:04:51]} Rfd8 {[%emt 0:05:05]} 23. f3 $36 {[%emt 0:04:52][%mdl 2048] White fights for an advantage.} Nef6 {[%emt 0:00:44]} (23... Nxc5 $1 $14 24. dxc5 Nf4+ 25. gxf4 Rxd1) 24. Nc6 {[%emt 0:06:16]} Re8 {[%emt 0:04:24]} 25. e4 {[%emt 0:04:18]} Ne7 {[%emt 0:00:13]} 26. Ne5 {[%emt 0:02:15]} Red8 {[%emt 0:05:30]} (26... bxc5 $16 27. dxc5 Reb8) 27. cxb6 $18 {[%emt 0:03:58]} cxb6 {[%emt 0:00:02]} 28. Rb3 {[%emt 0:00:53]} Rab8 {[%emt 0:01:39]} 29. Bf2 {[%emt 0:01:38]} (29. Rdb1 $18) 29... Nd7 $16 {[%emt 0:01:50]} 30. Rdb1 {[%emt 0:02:45] 0x0.0013b842f338dp-1022s more active pieces.} Nxe5 {[%emt 0:03:01]} 31. dxe5 {[%emt 0:00:03]} Nc6 {[%emt 0:00:21]} ({Less strong is} 31... Rd2 32. R1b2 Rbd8 33. Kh3 $16 (33. Rxb6 g5 $16)) 32. Bxb6 {[%emt 0:02:14]} Rd2+ {[%emt 0:01:09]} 33. Kh3 {[%emt 0:02:12] Hoping for Rc1.} h5 {[%emt 0:01:14]} 34. Rb5 {[%emt 0:03:06] And now Be3 would win.} Ra2 {[%emt 0:01:19]} 35. Rc1 $1 {[%emt 0:03:31]} ({Reject} 35. Bxa5 $6 Rxb5 36. Rxb5 Nd4 37. Rb8+ Kh7 $11) 35... Nb4 {[%emt 0:01:15]} 36. Rc3 {[%emt 0:11:33]} Rxa4 {[%emt 0:00:34]} 37. Rxa5 {[%emt 0:01:02]} Ra2 {[%emt 0:00:22]} 38. Rxa2 {[%emt 0:04:09]} (38. Rb3 {looks sharper.} Kh7 39. f4 Kh6 40. Bc7) 38... Nxa2 {[%emt 0:00:11][%mdl 4096] Endgame KRB-KRN} 39. Rc6 {[%emt 0:00:05]} Nb4 {[%emt 0:00:46]} 40. Rd6 {[%emt 0:00:06]} Kh7 {[%emt 0:00:40] [#]} (40... Nc2 $16 41. g4 Ne1) 41. Kh4 $1 $18 {[%emt 0:31:51]} g6 {[%emt 0:10:04]} 42. Kg5 {[%emt 0:00:00]} Kg7 {[%emt 0:03:07] [#]} 43. Bd8 $1 {[%emt 0:00:00]} Nc2 {[%emt 0:02:53]} 44. Bf6+ {[%emt 0:00:00]} Kh7 {[%emt 0:00:12]} 45. Rd7 {[%emt 0:00:00]} Kg8 {[%emt 0:00:29]} 46. f4 {[%emt 0:00:00]} Ne1 $2 {[%emt 0:10:48]} (46... Ne3 47. h3 Kf8) 47. f5 {[%emt 0:00:00] Threatens to win with fxe6.} exf5 {[%emt 0:00:38]} 48. e6 {[%emt 0:00:00]} fxe6 {[%emt 0:02:36]} 49. Kxg6 {[%emt 0:00:00] Threatening mate with Rh7.} Rf8 {[%emt 0:02:35]} 50. Rg7+ {[%emt 0:00:00]} Kh8 {[%emt 0:00:01]} 51. Rh7+ {[%emt 0:00:00] Weighted Error Value: White=0.06 (flawless) /Black=0.37} 1-0